bitfinex/quotes_ETHUSD_20250223
["timestamp","ask_amount","ask_price","bid_price","bid_amount"]
[1740335220152,0.7998,2825.8,2825.3,3.53935]
[1740335220356,0.7998,2825.8,2825.7,0.03511175]
[1740335220659,0.7998,2825.8,2825.4,3.53931]
[1740335220963,2.05697044,2825.8,2825.4,3.53931]
[1740335221160,2.05697044,2825.8,2825.5,0.03511175]
[1740335221361,0.7998,2825.8,2825.5,0.03511175]
[1740335222451,0.7998,2825.8,2825.5,3.57424175]
[1740335223359,0.7998,2825.8,2825.5,0.03511175]
[1740335223662,0.7998,2825.8,2825.5,3.53918]
[1740335223840,0.7998,2825.8,2825.6,0.03511175]
[1740335224930,0.7998,2825.8,2825.3,3.53934]
[1740335225125,0.7998,2825.8,2825.7,0.03511175]
[1740335225363,0.7998,2825.8,2825.5,3.53919]
[1740335225531,0.7998,2825.8,2825.7,0.03511175]
[1740335225731,0.7998,2825.8,2825.5,3.53919]
[1740335225931,0.7998,2825.8,2825.7,0.03511175]
[1740335226155,0.7998,2825.8,2825.5,3.53919]
[1740335226342,0.7998,2825.8,2825.7,0.03511175]
[1740335226545,0.7998,2825.8,2825.5,3.53919]
[1740335226546,0.7998,2825.8,2825.5,3.53911]
[1740335226748,0.7998,2825.8,2825.7,0.03511175]
[1740335226953,5.0612,2826.0,2825.6,3.53899]
[1740335227156,5.0612,2826.0,2825.7,0.03511175]
[1740335228168,5.0612,2826.0,2825.8,0.03511175]
[1740335228353,6.274998,2826.0,2825.5,3.53919]
[1740335228529,6.274998,2826.0,2825.9,0.03511175]
[1740335228735,6.274998,2826.0,2825.5,7.07832]
[1740335229037,6.274998,2826.0,2825.9,0.03511175]
[1740335229239,6.274998,2826.0,2825.5,7.07826]
[1740335229568,6.274998,2826.0,2825.5,7.07825]
[1740335229764,6.274998,2826.0,2825.6,0.03511175]
[1740335232272,0.7842,2825.8,2825.6,0.03511175]
[1740335232652,0.7842,2825.8,2825.4,3.53925]
[1740335233271,0.7842,2825.8,2825.5,0.03512896]
[1740335234469,0.7947,2825.4,2824.9,3.53993]
[1740335234852,3.53963,2825.2,2824.6,3.79922]
[1740335235043,8.57825942,2825.4,2824.6,3.79922]
[1740335235044,0.7947,2825.1,2824.6,3.79922]
[1740335235372,0.7947,2825.1,2825.0,0.32928692]
[1740335236472,0.7947,2825.1,2824.9,3.53993]
[1740335236677,0.7947,2825.1,2824.7,3.54016]
[1740335236866,0.7947,2825.1,2824.8,3.54006]
[1740335237867,0.7947,2825.1,2824.9,3.53991]
[1740335238970,0.7947,2825.1,2824.7,0.379916]
[1740335239147,0.7947,2825.1,2824.7,3.54009]
[1740335241017,0.7947,2825.1,2824.9,3.53992]
[1740335241778,0.7947,2825.1,2824.8,3.54006]
[1740335242147,0.7947,2825.1,2824.6,3.54024]
[1740335242351,4.3344,2825.1,2824.6,3.54024]
[1740335242563,4.3344,2825.1,2824.6,7.0805]
[1740335242764,0.7947,2825.1,2824.7,3.54016]
[1740335245190,5.0447,2825.1,2824.7,3.54016]
[1740335245388,5.0447,2825.1,2824.8,3.54006]
[1740335247184,5.0447,2825.1,2825.0,3.53982]
[1740335247390,4.25,2825.1,2825.0,4.247808]
[1740335247890,4.25,2825.1,2825.0,4.28135539]
[1740335248080,4.25,2825.1,2825.0,3.57336739]
[1740335250292,0.7741,2826.4,2825.8,3.53882]
[1740335250491,8.56219,2826.4,2825.9,3.5386]
[1740335250691,3.53857,2826.0,2825.9,0.03384858]
[1740335250894,7.05892342,2826.0,2825.9,0.03384858]
[1740335251073,0.7741,2825.7,2825.5,3.53918]
[1740335251275,0.7741,2825.7,2825.1,0.259]
[1740335251276,0.7741,2825.7,2825.4,3.53931]
[1740335251473,4.31312,2825.7,2825.6,0.03335811]
[1740335251671,4.31312,2825.7,2825.1,3.53963]
[1740335251672,5.169432,2825.7,2825.1,3.53963]
[1740335251872,5.169432,2825.7,2825.6,0.03335811]
[1740335252072,5.169432,2825.7,2825.2,3.53957]
[1740335252374,3.53907,2825.6,2825.2,3.53957]
[1740335252570,1.630412,2825.7,2825.3,0.03335811]
[1740335252775,0.5169242,2825.6,2825.2,3.53957]
[1740335252996,1.630412,2825.7,2825.4,0.03335811]
[1740335253293,1.630412,2825.7,2825.3,3.53937]
[1740335253496,5.169362,2825.7,2825.5,0.03335811]
[1740335253686,1.630412,2825.7,2825.3,3.53944]
[1740335254297,1.630412,2825.7,2825.4,3.57264811]
[1740335256504,1.630412,2825.7,2825.4,0.03335811]
[1740335256667,0.5169232,2825.6,2825.4,0.03335811]
[1740335256868,0.5169232,2825.6,2825.2,3.53949]
[1740335257173,4.7669232,2825.6,2825.2,3.53949]
[1740335257368,4.7669232,2825.6,2825.3,0.03335811]
[1740335257570,4.7669232,2825.6,2825.2,3.53949]
[1740335258203,0.99362852,2825.5,2825.3,0.03335811]
[1740335258604,0.99362852,2825.5,2825.2,3.53949]
[1740335258905,0.99362852,2825.5,2825.4,0.03335811]
[1740335259100,0.99362852,2825.5,2825.2,3.53949]
[1740335259314,0.99362852,2825.5,2825.3,0.03335811]
[1740335259605,0.99362852,2825.5,2825.2,3.53949]
[1740335259766,0.99362852,2825.5,2825.4,0.03335811]
[1740335259969,0.99362852,2825.5,2825.2,3.53949]
[1740335260169,4.7669232,2825.6,2825.4,0.03335811]
[1740335260395,4.7669232,2825.6,2825.2,3.53949]
[1740335260605,4.7669232,2825.6,2825.5,0.03335811]
[1740335260779,8.3059932,2825.6,2825.2,3.53949]
[1740335260981,8.3059932,2825.6,2825.5,0.03326343]
[1740335261182,4.7669232,2825.6,2825.3,3.53943]
[1740335261393,4.7669232,2825.6,2825.5,0.03326343]
[1740335261682,8.3059932,2825.6,2824.8,3.79897]
[1740335261870,9.1124932,2825.6,2825.5,0.03326343]
[1740335262072,3.5394,2825.4,2824.9,3.53988]
[1740335262507,3.53946,2825.3,2824.9,3.53988]
[1740335263018,3.53927,2825.5,2825.0,3.5398]
[1740335263805,12.6517532,2825.6,2825.1,3.53969]
[1740335263978,9.1125832,2825.6,2825.1,3.53969]
[1740335264410,12.6517632,2825.6,2825.1,3.53969]
[1740335264570,1.53980166,2825.5,2825.1,3.53969]
[1740335265110,5.07900166,2825.5,2825.1,3.53969]
[1740335265978,12.86828166,2825.5,2825.0,3.53981]
[1740335266617,9.32900166,2825.5,2825.0,3.53981]
[1740335266912,3.53932,2825.4,2825.0,3.53981]
[1740335269118,3.53969,2825.1,2824.6,3.54025]
[1740335269319,3.53996,2824.9,2824.5,3.54035]
[1740335269621,3.54013,2824.8,2824.3,3.54069]
[1740335269915,7.79013,2824.8,2824.3,3.54069]
[1740335270482,7.79013,2824.8,2824.4,0.03348716]
[1740335271086,4.25,2824.8,2824.4,3.57404716]
[1740335271613,7.79008,2824.8,2824.4,3.57404716]
[1740335271920,7.79008,2824.8,2824.4,0.03348716]
[1740335272309,3.54044,2824.5,2824.4,0.03348716]
[1740335272620,3.54044,2824.5,2824.0,7.0819]
[1740335272824,3.54044,2824.5,2824.4,0.03403798]
[1740335273114,3.54044,2824.5,2824.1,3.54095]
[1740335273421,4.25471811,2824.5,2824.1,3.54095]
[1740335273718,4.25211168,2824.5,2824.2,0.03403798]
[1740335273898,5.10724885,2824.5,2824.2,0.03403798]
[1740335274607,1.56941528,2824.5,2824.2,0.03403798]
[1740335276727,1.56941528,2824.5,2824.2,3.57483798]
[1740335276927,0.71427811,2824.5,2824.3,3.54069]
[1740335277107,0.71427811,2824.5,2824.3,3.57527889]
[1740335277308,0.71427811,2824.5,2824.3,0.03458889]
[1740335277531,0.71427811,2824.5,2824.2,3.54082]
[1740335277727,0.71427811,2824.5,2824.4,0.0345975]
[1740335277890,4.96427811,2824.5,2824.2,3.54076]
[1740335278225,4.96427811,2824.5,2824.4,3.54057]
[1740335278591,4.96427811,2824.5,2824.4,3.57515028]
[1740335283238,5.72327811,2824.5,2824.4,0.03458028]
[1740335283543,6.29560592,2824.5,2824.2,3.54077]
[1740335283735,6.29560592,2824.5,2824.4,0.03340488]
[1740335283736,5.72327811,2824.5,2824.4,0.03340488]
[1740335283913,4.96427811,2824.5,2824.4,3.54057]
[1740335284317,4.96427811,2824.5,2824.4,3.57397488]
[1740335289742,0.71427811,2824.5,2824.4,3.57397488]
[1740335291613,0.71427811,2824.5,2824.4,4.29877488]
[1740335291841,4.25,2824.7,2824.6,4.26512]
[1740335292342,4.25,2824.7,2824.6,4.29855071]
[1740335295720,4.51997542,2825.3,2825.1,3.53968]
[1740335295921,4.25,2825.3,2825.2,3.57275967]
[1740335296516,4.25,2825.3,2825.2,3.53957]
[1740335303248,4.94203808,2825.3,2825.2,4.25336717]
[1740335303975,4.94203808,2825.3,2825.2,0.71379717]
[1740335304379,4.25,2825.3,2825.1,3.53968]
[1740335304889,4.25,2825.3,2819.4,0.0033]
[1740335304890,3.53969,2825.1,2824.4,3.54048]
[1740335305091,4.36372,2825.0,2824.5,3.54044]
[1740335305247,0.8239,2824.8,2824.2,3.54075]
[1740335305452,0.8239,2824.8,2824.4,3.5405]
[1740335308770,0.8239,2824.8,2824.4,7.081]
[1740335308956,0.8239,2824.8,2824.4,3.5405]
[1740335309292,0.8239,2824.8,2824.5,3.54042]
[1740335310592,5.0739,2824.8,2824.5,3.54042]
[1740335312782,5.0739,2824.8,2824.3,7.08117]
[1740335312982,0.796,2824.7,2824.4,3.54056]
[1740335313370,0.796,2824.7,2824.1,0.259]
[1740335313569,0.796,2824.4,2823.9,0.259]
[1740335313771,0.796,2824.4,2824.1,3.54093]
[1740335314505,0.796,2824.4,2824.0,3.54107]
[1740335314700,5.046,2824.4,2823.9,3.54115]
[1740335314906,0.77922534,2824.3,2823.9,3.54115]
[1740335315198,5.046,2824.4,2823.9,3.54112]
[1740335317108,5.046,2824.4,2823.9,7.08224]
[1740335317401,5.046,2824.4,2823.9,3.54112]
[1740335317702,5.046,2824.4,2823.9,7.08224]
[1740335317903,5.046,2824.4,2823.9,7.08226]
[1740335318108,5.046,2824.4,2823.9,3.54112]
[1740335318315,5.99618176,2824.4,2823.9,3.54112]
[1740335319778,5.99618176,2824.4,2824.0,3.54107]
[1740335321624,5.99618176,2824.4,2824.1,0.03348249]
[1740335326905,5.046,2824.4,2824.2,3.54081]
[1740335327133,5.046,2824.4,2824.3,3.5407]
[1740335327408,5.046,2824.4,2824.3,3.57487125]
[1740335327836,5.76727519,2824.4,2824.3,3.57487125]
[1740335330109,5.76727519,2824.4,2824.3,0.03417125]
[1740335330526,5.76727519,2824.4,2824.2,3.54078]
[1740335330755,5.76727519,2824.4,2824.3,0.03411097]
[1740335331047,5.76727519,2824.4,2824.2,3.54078]
[1740335331279,5.76727519,2824.4,2824.3,0.03411097]
[1740335331648,5.76727519,2824.4,2824.2,3.54078]
[1740335331850,5.76727519,2824.4,2824.3,0.03411097]
[1740335332063,5.76727519,2824.4,2824.2,3.54078]
[1740335332246,5.76727519,2824.4,2824.3,0.03404207]
[1740335332447,5.76727519,2824.4,2824.2,3.54078]
[1740335332681,5.76727519,2824.4,2824.3,0.03404207]
[1740335332981,5.76727519,2824.4,2824.2,3.54078]
[1740335333281,5.76727519,2824.4,2824.3,0.03404207]
[1740335333693,5.76727519,2824.4,2824.2,3.54078]
[1740335333874,5.76727519,2824.4,2824.3,0.03404207]
[1740335334177,5.76727519,2824.4,2824.2,3.54078]
[1740335334369,5.76727519,2824.4,2824.3,0.03404207]
[1740335334568,5.76727519,2824.4,2824.2,3.54078]
[1740335334807,3.54093,2824.2,2823.5,3.54162]
[1740335334961,6.28792306,2823.9,2823.4,3.5418]
[1740335335149,0.7752,2823.8,2823.4,3.5418]
[1740335335661,0.7752,2823.8,2823.3,3.54184]
[1740335335863,0.7752,2823.8,2823.4,3.54182]
[1740335336488,0.7752,2823.8,2823.5,3.5417]
[1740335337463,1.48149231,2823.8,2823.4,3.5417]
[1740335337663,0.7752,2823.8,2823.4,3.5417]
[1740335338078,0.7752,2823.5,2823.3,3.54195]
[1740335338281,5.0252,2823.5,2823.3,3.54195]
[1740335339355,5.0252,2823.5,2823.3,7.08373]
[1740335339782,5.0252,2823.5,2823.3,3.54186]
[1740335340199,5.0252,2823.5,2823.4,3.54182]
[1740335341657,5.0252,2823.5,2823.3,3.54184]
[1740335342400,5.0252,2823.5,2823.4,3.54182]
[1740335349831,6.88644369,2823.5,2823.0,3.54232]
[1740335350043,5.55395306,2823.5,2822.7,0.7248]
[1740335350252,4.25,2823.5,2823.4,3.54182]
[1740335355151,4.25,2824.0,2823.9,3.5412]
[1740335355360,0.7847,2824.2,2824.0,3.54097]
[1740335355549,5.0347,2824.2,2824.0,3.54097]
[1740335355747,5.87063813,2824.2,2823.8,3.54125]
[1740335355931,5.87063813,2824.2,2823.9,3.54118]
[1740335356118,5.87063813,2824.2,2823.5,0.7248]
[1740335356119,5.87063813,2824.2,2824.0,3.541]
[1740335357361,0.72462277,2824.1,2824.0,3.541]
[1740335357770,0.72462277,2824.1,2823.8,7.08249]
[1740335358069,0.72462277,2824.1,2823.9,3.54107]
[1740335358235,0.72462277,2824.1,2823.8,3.54123]
[1740335358436,0.98906894,2824.1,2824.0,3.54107]
[1740335360335,5.23906894,2824.1,2824.0,3.54107]
[1740335360531,5.23906894,2824.1,2824.0,4.26587]
[1740335360532,0.72462277,2824.1,2824.0,4.26587]
[1740335360747,0.72462277,2824.1,2824.0,3.54107]
[1740335362868,0.72462277,2824.1,2824.0,4.26587]
[1740335363489,4.25,2824.5,2824.2,3.54076]
[1740335363646,4.25,2824.5,2824.2,7.08149]
[1740335364180,4.25,2824.5,2824.3,3.54069]
[1740335364384,4.25,2824.5,2823.4,3.359]
[1740335364385,0.7847,2824.4,2824.1,3.54089]
[1740335364686,0.7847,2824.4,2824.3,3.5407]
[1740335365253,0.7847,2824.4,2824.2,3.54082]
[1740335365896,0.7847,2824.4,2824.3,3.5407]
[1740335366067,4.25,2824.5,2824.3,3.5407]
[1740335375587,4.25,2824.5,2824.3,7.0813]
[1740335376109,4.25,2824.5,2824.3,3.5406]
[1740335378275,4.25,2824.5,2824.2,3.54081]
[1740335378677,1.33165784,2824.4,2824.1,3.54087]
[1740335378903,1.33165784,2824.4,2824.2,3.54075]
[1740335379105,0.8315,2824.3,2823.9,3.54112]
[1740335379292,1.33165784,2824.2,2823.8,3.54127]
[1740335379492,1.33165784,2824.2,2823.8,3.54123]
[1740335379695,4.87248784,2824.2,2823.8,3.54123]
[1740335380307,1.33165784,2824.0,2823.7,3.54143]
[1740335380611,2.16315784,2824.0,2823.7,3.54143]
[1740335381088,2.16315784,2824.0,2823.6,3.54149]
[1740335381286,2.16315784,2824.0,2823.7,3.54137]
[1740335382014,2.16315784,2824.0,2823.6,3.54149]
[1740335382215,2.16315784,2824.0,2823.6,7.08298]
[1740335382415,2.16315784,2824.0,2823.6,7.08299]
[1740335383895,2.16315784,2824.0,2823.7,3.54143]
[1740335384090,2.16315784,2824.0,2823.7,3.54137]
[1740335384296,2.16315784,2824.0,2823.8,3.54132]
[1740335384697,6.41315784,2824.0,2823.8,3.54132]
[1740335390028,4.25,2824.0,2823.9,3.5412]
[1740335394969,0.8228,2823.9,2823.5,3.54167]
[1740335395138,0.8228,2823.9,2823.6,3.5415]
[1740335396488,0.8228,2823.9,2823.7,3.54144]
[1740335397670,0.8228,2823.7,2823.4,0.1]
[1740335397830,1.33165784,2823.8,2823.4,0.1]
[1740335397831,0.8228,2823.5,2823.4,0.1]
[1740335398849,4.3645,2823.5,2823.4,0.1]
[1740335402251,8.87679877,2823.5,2823.4,0.1]
[1740335402802,11.87679877,2823.5,2823.4,0.1]
[1740335402992,13.71506187,2823.5,2823.4,0.1]
[1740335406716,10.86800186,2823.5,2823.4,0.1]
[1740335406897,14.40970186,2823.5,2823.4,0.1]
[1740335408284,6.02973876,2823.5,2823.4,0.1]
[1740335408483,5.20693876,2823.5,2823.4,3.64182]
[1740335411315,0.69463999,2823.5,2823.4,3.64182]
[1740335413028,0.69463999,2823.5,2823.4,4.36662]
[1740335413230,0.69463999,2823.5,2823.4,5.157475]
[1740335413539,4.25,2823.9,2823.8,3.54132]
[1740335416019,4.25,2823.9,2823.7,4.26624]
[1740335416218,4.25,2823.9,2823.8,3.54132]
[1740335416519,4.25,2823.9,2823.7,3.54142]
[1740335417651,4.25,2823.9,2823.6,3.54151]
[1740335417880,5.72665687,2823.9,2823.6,3.54151]
[1740335418160,5.72665687,2823.9,2823.5,3.5417]
[1740335418318,9.26786687,2823.9,2823.5,3.5417]
[1740335418637,10.57553502,2823.9,2823.4,4.36656]
[1740335418950,3.54135,2823.8,2823.4,3.64176]
[1740335419249,7.03432502,2823.9,2823.4,0.1]
[1740335419557,5.72665687,2823.9,2823.7,3.54138]
[1740335420477,9.26785687,2823.9,2823.5,3.54162]
[1740335421719,5.72665687,2823.9,2823.6,3.54157]
[1740335422485,9.26785687,2823.9,2823.5,3.54162]
[1740335422700,5.72665687,2823.9,2823.5,3.54162]
[1740335424919,5.72665687,2823.9,2823.5,7.08326]
[1740335425127,4.96225687,2823.9,2823.5,0.718326]
[1740335425336,4.25,2823.9,2823.8,3.54132]
[1740335426266,3.54016,2824.8,2824.1,3.54095]
[1740335426267,4.25,2824.2,2824.1,3.54095]
[1740335426397,4.25,2824.7,2824.6,3.54032]
[1740335426743,4.25,2824.7,2824.4,7.08098]
[1740335426939,0.50444,2824.6,2824.4,7.08098]
[1740335427322,0.50444,2824.6,2824.5,3.54044]
[1740335427649,0.50444,2824.6,2824.4,3.54056]
[1740335428240,0.50444,2824.6,2824.4,7.08104]
[1740335429097,0.50444,2824.6,2824.5,3.54044]
[1740335430230,4.5178144,2824.7,2824.4,3.54048]
[1740335430428,4.5178144,2824.7,2824.6,3.54032]
[1740335430631,4.25,2824.7,2824.6,4.26512]
[1740335430928,0.27190885,2825.1,2824.6,0.7248]
[1740335431131,0.27190885,2825.1,2825.0,3.53982]
[1740335431443,4.25,2825.2,2825.0,3.53982]
[1740335431444,4.25,2825.2,2825.1,3.53969]
[1740335432228,0.8149,2825.6,2825.0,0.7248]
[1740335432407,0.50649,2825.6,2825.3,3.5394]
[1740335432611,4.75649,2825.6,2825.3,3.5394]
[1740335433343,4.75649,2825.6,2825.1,3.5396]
[1740335433654,4.75649,2825.6,2648.2,0.02]
[1740335433655,2.74879641,2825.3,2824.0,5.39]
[1740335433792,0.8149,2825.2,2824.6,0.7248]
[1740335434139,0.8149,2825.2,2824.8,3.53999]
[1740335434140,4.25,2825.2,2824.8,3.53999]
[1740335434442,4.25,2825.2,2825.0,3.53982]
[1740335435143,4.25,2825.2,2825.1,3.53969]
[1740335436001,4.25,2825.2,2824.8,4.26485]
[1740335436247,4.25,2825.2,2824.8,0.7248]
[1740335436397,4.25,2825.2,2824.9,3.53982]
[1740335437034,4.25,2825.2,2825.0,3.53981]
[1740335439913,4.25,2825.2,2824.9,3.53991]
[1740335440543,4.25,2825.2,2824.8,4.26475]
[1740335440859,4.25,2825.2,2824.6,4.26505]
[1740335440860,0.8149,2825.1,2824.6,4.26505]
[1740335441023,4.35464,2825.1,2824.6,0.7248]
[1740335441220,2.74879641,2824.9,2824.5,3.54038]
[1740335441422,4.25,2825.0,2824.6,3.54023]
[1740335441848,4.25,2825.0,2824.2,3.54077]
[1740335441849,3.54029,2824.7,2824.2,0.7248]
[1740335442050,4.35535,2824.5,2824.0,0.71136943]
[1740335442215,5.0649,2824.7,2823.8,4.52411]
[1740335442551,5.0649,2824.7,2824.3,3.54062]
[1740335443114,5.0649,2824.7,2824.3,3.54061]
[1740335443354,5.0649,2824.7,2824.4,3.54056]
[1740335444638,4.25,2824.7,2824.5,3.54044]
[1740335444815,4.25,2824.7,2824.6,3.54032]
[1740335445017,4.25,2824.7,2824.5,3.54037]
[1740335445244,4.25,2824.7,2824.6,3.54032]
[1740335445960,4.25,2824.7,2824.5,3.54037]
[1740335446251,0.797,2824.6,2824.1,3.54083]
[1740335446444,0.797,2824.6,2824.2,3.54075]
[1740335446646,0.797,2824.6,2824.3,3.54069]
[1740335447553,4.52245179,2824.7,2824.4,3.54051]
[1740335447855,4.52245179,2824.7,2824.5,3.54044]
[1740335448062,4.52245179,2824.7,2824.3,3.54063]
[1740335449823,4.52245179,2824.7,2824.4,3.54055]
[1740335451123,4.52245179,2824.7,2824.0,0.7248]
[1740335451327,4.25,2824.7,2824.6,3.54032]
[1740335451570,4.25,2824.7,2824.5,3.54043]
[1740335451571,5.0711,2825.1,2824.8,7.08006]
[1740335451866,5.0711,2825.1,2824.9,3.53993]
[1740335452223,4.25,2825.1,2824.9,3.53987]
[1740335453148,4.52145302,2825.1,2824.9,3.53987]
[1740335453618,4.52145302,2825.1,2824.7,3.5401]
[1740335453619,8.06115302,2825.1,2824.7,3.5401]
[1740335453825,4.52145302,2825.1,2824.7,3.5401]
[1740335454151,4.52145302,2825.1,2824.7,7.08024]
[1740335454725,4.52145302,2825.1,2824.8,3.54006]
[1740335458985,4.25,2825.1,2825.0,3.53982]
[1740335459228,4.25,2825.5,2824.9,0.7248]
[1740335459492,4.25,2825.5,2825.1,3.53969]
[1740335459660,7.78926,2825.5,2825.0,3.53981]
[1740335460055,3.53942,2825.4,2824.9,3.53989]
[1740335460257,3.5395,2825.3,2824.8,3.54005]
[1740335460887,0.69514736,2825.2,2824.8,3.54005]
[1740335461275,0.69514736,2825.2,2824.7,4.50619802]
[1740335461474,3.53964,2825.2,2824.7,3.79813]
[1740335461661,3.5395,2825.3,2824.7,3.79813]
[1740335461878,3.5395,2825.3,2824.8,0.379813]
[1740335462274,3.5395,2825.3,2824.9,3.53992]
[1740335464915,0.8211,2825.2,2824.8,3.54007]
[1740335465213,0.8211,2825.2,2824.9,3.53993]
[1740335468171,0.8211,2825.2,2824.7,3.54012]
[1740335468354,0.8211,2825.2,2824.9,3.53988]
[1740335469641,0.8211,2825.2,2824.8,3.54006]
[1740335469841,4.3607,2825.2,2824.8,3.54006]
[1740335470563,4.3607,2825.2,2824.6,3.5403]
[1740335470564,0.72166081,2825.0,2824.6,0.70351295]
[1740335470884,0.807,2824.6,2824.0,0.7248]
[1740335471084,0.807,2824.8,2824.0,4.26586]
[1740335471378,0.807,2824.8,2824.4,3.54047]
[1740335471679,0.807,2824.8,2824.4,7.08098]
[1740335471881,0.807,2824.8,2824.4,3.54047]
[1740335472674,0.807,2824.8,2824.5,3.54043]
[1740335472888,0.807,2824.8,2824.4,3.54047]
[1740335473042,0.807,2824.8,2824.5,3.54044]
[1740335473247,0.807,2824.8,2824.4,3.54051]
[1740335473980,0.807,2824.8,2824.4,7.08101]
[1740335474275,0.807,2824.8,2824.5,3.54036]
[1740335474502,0.807,2824.8,2824.4,3.5405]
[1740335474704,0.807,2824.8,2824.5,3.54038]
[1740335474909,0.807,2824.8,2824.4,7.08101]
[1740335475062,0.807,2824.8,2824.5,3.54043]
[1740335475804,0.807,2824.8,2824.4,3.54056]
[1740335476162,0.807,2824.8,2824.4,3.5405]
[1740335476507,0.807,2824.8,2824.2,3.54073]
[1740335476801,3.54037,2824.6,2824.1,3.993276]
[1740335477308,0.811,2824.5,2824.1,3.993276]
[1740335478195,4.35152,2824.5,2824.0,7.08202]
[1740335478517,4.35152,2824.5,2823.7,0.7248]
[1740335478518,3.54076,2824.3,2823.8,3.54123]
[1740335478683,0.811,2824.2,2823.9,3.54118]
[1740335480216,0.811,2824.2,2823.8,3.54123]
[1740335480417,0.811,2824.2,2824.0,3.54107]
[1740335481584,3.54096,2824.1,2823.7,3.54143]
[1740335482002,0.811,2824.2,2823.7,3.54136]
[1740335482203,0.811,2824.2,2823.8,3.54131]
[1740335483380,4.35189,2824.2,2823.6,3.54147]
[1740335483582,0.811,2824.2,2823.8,3.54131]
[1740335483883,0.811,2824.2,2823.9,3.54118]
[1740335485734,5.061,2824.2,2823.9,3.54118]
[1740335486432,5.061,2824.2,2823.8,3.54131]
[1740335486621,5.061,2824.2,2823.9,3.5412]
[1740335489225,5.061,2824.2,2823.4,0.1]
[1740335489226,0.7891,2824.1,2823.4,0.1]
[1740335489390,0.7891,2823.8,2823.5,3.5417]
[1740335489595,5.0391,2823.8,2823.4,0.1]
[1740335489795,8.58049,2823.8,2823.4,0.1]
[1740335490225,3.54152,2823.7,2823.4,0.1]
[1740335490393,0.7891,2823.5,2823.4,0.1]
[1740335490598,8.5808,2823.5,2823.4,0.1]
[1740335491430,11.5808,2823.5,2823.4,0.1]
[1740335492796,5.30122172,2823.5,2823.4,3.64182]
[1740335492999,9.37304389,2823.5,2823.4,0.1]
[1740335498368,12.37304389,2823.5,2823.4,0.1]
[1740335499621,12.92304389,2823.5,2823.4,0.1]
[1740335500148,13.61601557,2823.5,2823.4,0.1]
[1740335502763,14.68065157,2823.5,2823.4,0.1]
[1740335505868,18.30564962,2823.5,2823.4,0.1]
[1740335507672,17.75564962,2823.5,2823.4,0.1]
[1740335508968,18.30564962,2823.5,2823.4,0.1]
[1740335510055,18.30564962,2823.5,2822.3,0.7248]
[1740335510056,0.7986,2822.7,2822.3,0.7248]
[1740335510222,4.25,2822.6,2822.3,0.7248]
[1740335510534,5.109126,2822.6,2822.3,0.7248]
[1740335510739,4.25,2822.6,2822.3,0.7248]
[1740335513928,4.25,2822.6,2822.3,4.26798]
[1740335514378,4.25,2822.6,2822.3,0.7248]
[1740335515375,0.69316132,2822.4,2822.3,0.7248]
[1740335515669,4.25,2822.6,2822.3,0.7248]
[1740335516141,4.25,2822.6,2822.4,3.54307]
[1740335516335,4.25,2822.6,2822.5,3.54295]
[1740335517674,4.25,2822.6,2822.5,4.26775]
[1740335518222,4.25,2822.6,2822.3,3.54314]
[1740335518424,4.25,2822.6,2822.3,4.26794]
[1740335520161,4.25,2822.6,2822.3,0.7248]
[1740335520765,4.25,2822.6,2822.3,4.268]
[1740335520967,4.25,2822.6,2822.3,0.7248]
[1740335521154,6.153631,2822.6,2822.1,4.26824]
[1740335521668,4.25,2822.6,2822.3,3.54308]
[1740335522028,4.25,2822.6,2822.4,3.54305]
[1740335522434,4.25,2822.6,2822.4,3.54302]
[1740335523159,4.25,2822.6,2822.3,3.54319]
[1740335523338,4.25,2822.6,2822.1,0.7248]
[1740335523561,4.25,2822.6,2822.5,4.26775]
[1740335524176,4.25,2822.6,2822.5,0.7248]
[1740335524470,4.25,2822.6,2822.4,3.543]
[1740335526037,4.25,2822.6,2822.1,0.7248]
[1740335526238,4.25,2822.6,2822.2,3.54326]
[1740335526776,5.106282,2822.6,2822.2,3.54326]
[1740335527607,4.25,2822.6,2822.4,3.54305]
[1740335528108,4.25,2822.6,2822.5,4.26775]
[1740335528306,4.25,2823.3,2823.1,3.54218]
[1740335528606,4.25,2823.3,2823.0,3.5423]
[1740335528808,4.25,2823.3,2823.0,3.54227]
[1740335528965,4.25,2823.3,2823.1,4.26692]
[1740335529170,4.25,2823.3,2823.1,0.7248]
[1740335529809,4.25,2823.3,2823.1,4.26698]
[1740335530291,4.25,2823.3,2823.1,0.7248]
[1740335530502,4.25,2823.3,2822.9,4.26716]
[1740335531110,4.25,2823.3,2823.0,3.54226]
[1740335532115,4.25,2823.3,2822.9,4.26716]
[1740335533321,4.25,2823.3,2823.2,3.54207]
[1740335534847,4.25,2823.3,2823.2,4.26687]
[1740335535229,4.25,2823.3,2823.2,5.04777]
[1740335536749,3.1787367,2823.8,2823.7,3.54145]
[1740335537052,4.25,2823.9,2823.7,4.26625]
[1740335537229,4.25,2823.9,2823.8,3.54132]
[1740335537849,4.25,2823.9,2823.7,4.26625]
[1740335541341,4.25,2823.9,2823.7,4.26617]
[1740335542995,4.25,2823.9,2823.8,3.54132]
[1740335543181,4.25,2823.9,2823.8,4.322069]
[1740335543386,3.5414,2823.8,2823.2,4.26685]
[1740335543706,3.5414,2823.8,2823.3,3.54195]
[1740335544204,3.5414,2823.8,2823.3,7.08381]
[1740335544505,3.5414,2823.8,2823.2,0.7248]
[1740335544506,3.54152,2823.7,2823.2,0.7248]
[1740335544796,3.54152,2823.7,2823.2,4.26681]